bitfinex-derivatives/quotes_ETHF0:USTF0_20210406
["timestamp","ask_amount","ask_price","bid_price","bid_amount"]
[1617718700978,32.90695,2077.1,2077.0,55.0]
[1617718701679,2.90695,2077.1,2077.0,55.0]
[1617718704582,32.90695,2077.1,2077.0,55.0]
[1617718706186,34.90695,2077.1,2077.0,55.0]
[1617718706387,35.86735,2077.1,2077.0,55.0]
[1617718707589,35.86735,2077.1,2077.0,42.4186]
[1617718707801,114.90685,2077.1,2077.0,42.4186]
[1617718708493,114.90685,2077.1,2074.3,16.11915]
[1617718708692,114.90685,2077.1,2074.3,13.2122]
[1617718710296,2.90695,2074.4,2074.3,13.2122]
[1617718713999,2.90695,2074.4,2074.3,13.1912]
[1617718714398,30.0,2075.9,2074.3,13.1912]
[1617718714601,30.0,2076.2,2074.3,15.9524]
[1617718714798,2.0,2077.2,2074.9,78.2088]
[1617718715099,66.18701666,2077.9,2074.9,78.2088]
[1617718715100,66.1739,2077.9,2074.9,80.3757]
[1617718715700,32.0,2077.8,2075.0,14.8183]
[1617718716301,32.0,2077.8,2075.4,2.90695]
[1617718716502,32.0,2077.8,2075.4,5.28055]
[1617718716903,32.0,2077.8,2075.4,2.3736]
[1617718717500,32.0,2077.8,2075.0,12.8183]
[1617718717701,34.3059,2077.8,2075.0,12.8183]
[1617718718303,2.90695,2075.1,2075.0,15.72525]
[1617718718503,2.90695,2075.1,2075.0,12.8183]
[1617718718903,1.9062,2077.2,2075.0,12.8183]
[1617718719103,1.9062,2077.2,2075.0,14.9654]
[1617718720209,32.0,2077.8,2075.0,14.9654]
[1617718720404,2.90695,2075.1,2075.0,14.9654]
[1617718720613,2.90695,2075.1,2075.0,12.8183]
[1617718722907,32.90695,2075.1,2075.0,12.8183]
[1617718723512,34.90695,2075.1,2075.0,12.0457]
[1617718723910,34.90695,2075.1,2075.0,11.8225]
[1617718724814,34.90695,2075.1,2075.0,9.954]
[1617718725109,34.90695,2075.1,2073.1,2.0]
[1617718725309,34.90695,2075.1,2073.2,12.8043]
[1617718726010,34.90695,2075.1,2073.2,15.4511]
[1617718726411,2.0,2075.1,2073.3,2.90695]
[1617718726613,30.0,2075.0,2073.3,2.90695]
[1617718727115,30.0,2075.0,2073.4,2.0]
[1617718727414,30.0,2075.0,2073.4,0.9628]
[1617718728513,2.90695,2073.5,2073.2,12.8043]
[1617718730215,30.0,2074.2,2073.2,12.8043]
[1617718730416,2.90695,2073.3,2073.2,12.8043]
[1617718734229,5.91585,2073.3,2073.2,12.8043]
[1617718735422,2.90695,2073.3,2073.2,12.8043]
[1617718738425,2.90695,2073.3,2073.2,15.71125]
[1617718738924,2.0,2075.4,2073.2,15.71125]
[1617718739130,2.0,2075.4,2073.2,18.55325]
[1617718739327,0.01310723,2077.4,2073.3,2.0]
[1617718739626,0.0131104,2077.5,2074.1,78.1917]
[1617718739825,0.0131104,2077.5,2074.1,80.2965]
[1617718740028,1.1,2077.6,2074.1,80.2965]
[1617718740527,2.90695,2074.2,2074.1,83.20345]
[1617718740727,2.90695,2074.2,2074.1,5.01175]
[1617718741329,0.9523,2075.8,2074.1,5.01175]
[1617718741528,89.2804,2075.9,2074.1,5.01175]
[1617718741728,89.2804,2075.9,2074.2,2.0]
[1617718741928,2.0,2077.1,2074.2,2.0]
[1617718742128,30.0,2076.2,2074.3,13.5342]
[1617718742329,30.0,2076.2,2074.4,2.0]
[1617718742528,30.0,2076.2,2074.8,2.90695]
[1617718742730,30.0,2076.2,2074.8,4.78205]
[1617718742932,72.0678,2077.2,2074.8,4.78205]
[1617718742933,2.0,2077.1,2074.8,4.78205]
[1617718743129,30.0,2077.0,2074.8,4.78205]
[1617718743332,30.0,2077.0,2074.9,2.0]
[1617718743533,30.0,2077.0,2074.8,4.78205]
[1617718744239,30.0,2076.8,2074.8,4.78205]
[1617718744436,32.0,2076.8,2074.8,4.78205]
[1617718744635,32.0,2076.8,2075.1,2.90695]
[1617718745145,32.0,2076.8,2074.3,13.5342]
[1617718745336,34.9847,2076.8,2074.3,13.5342]
[1617718746638,2.90695,2074.4,2074.3,13.5342]
[1617718746838,2.90695,2074.4,2074.3,15.5342]
[1617718748040,30.0,2075.8,2074.3,15.5342]
[1617718748241,30.0,2076.2,2074.3,18.0595]
[1617718748540,30.0,2076.2,2074.9,2.90695]
[1617718748849,69.4887,2077.8,2075.0,2.0]
[1617718749243,32.0,2077.7,2075.0,2.0]
[1617718749543,32.0,2077.7,2075.1,13.436]
[1617718750547,2.90695,2075.2,2075.1,13.436]
[1617718755253,30.0,2076.5,2075.1,13.436]
[1617718755556,30.0,2076.4,2075.2,2.0]
[1617718756453,30.0,2076.4,2075.1,15.8038]
[1617718756653,30.0,2076.4,2075.3,2.90695]
[1617718756856,30.0,2076.4,2075.1,13.436]
[1617718757354,2.0,2076.3,2075.1,13.436]
[1617718757658,2.0,2076.1,2075.1,13.436]
[1617718757853,30.0,2076.0,2075.1,18.436]
[1617718758073,2.0,2075.9,2075.1,18.436]
[1617718758255,30.0,2075.8,2075.1,18.436]
[1617718758457,2.0,2075.7,2075.1,18.436]
[1617718758656,32.90695,2075.2,2075.1,18.436]
[1617718758957,34.77585,2075.2,2075.1,18.436]
[1617718759858,32.90695,2075.2,2075.1,8.436]
[1617718760158,32.90695,2075.2,2075.1,5.0]
[1617718762863,34.93615,2075.2,2075.1,5.0]
[1617718763765,4.93615,2075.2,2075.1,5.0]
[1617718763966,2.90695,2075.2,2075.1,5.0]
[1617718767170,5.57265,2075.2,2075.1,5.0]
[1617718767370,35.57265,2075.2,2075.1,5.0]
[1617718768073,37.57265,2075.2,2075.1,5.0]
[1617718770272,37.57265,2075.2,2075.1,3.9175]
[1617718771278,37.57265,2075.2,2075.1,3.1975]
[1617718771680,37.57265,2075.2,2075.1,0.0001]
[1617718771880,37.57265,2075.2,2073.1,13.1467]
[1617718772180,37.57265,2075.2,2073.0,12.6399]
[1617718772680,2.90695,2073.1,2073.0,12.6399]
[1617718772880,5.65945,2073.1,2073.0,12.6399]
[1617718774385,35.65945,2073.1,2073.0,12.6399]
[1617718776587,37.65945,2073.1,2073.0,12.6399]
[1617718776889,37.65945,2073.1,2070.4,30.0]
[1617718776890,37.65945,2073.1,2070.4,5.07956261]
[1617718777086,37.65945,2073.1,2070.5,13.843]
[1617718777288,54.7637,2072.0,2070.5,13.843]
[1617718777490,30.0,2071.9,2070.5,13.843]
[1617718777688,30.0,2071.7,2070.5,13.843]
[1617718777895,2.0,2071.6,2070.5,13.843]
[1617718778089,30.0,2071.5,2069.7,13.7263]
[1617718778392,58.626,2070.7,2069.7,13.7263]
[1617718778689,60.4635,2070.7,2069.9,2.90695]
[1617718778888,60.4635,2070.7,2069.7,13.7263]
[1617718779490,1.8375,2070.7,2069.7,13.7263]
[1617718780790,1.8375,2070.7,2069.9,2.90695]
[1617718781291,1.8375,2070.7,2069.7,13.7263]
[1617718781491,2.812,2070.7,2069.7,13.7263]
[1617718781792,1.8375,2070.7,2069.7,13.7263]
[1617718782793,2.90695,2069.8,2069.7,13.7263]
[1617718782992,5.17125,2069.8,2069.7,13.7263]
[1617718783193,5.17125,2069.8,2068.5,13.4711]
[1617718784695,2.2643,2069.8,2069.1,2.90695]
[1617718786699,2.90695,2069.2,2069.0,2.90695]
[1617718786898,5.38375,2069.2,2069.0,2.90695]
[1617718788098,2.4768,2069.2,2069.0,2.90695]
[1617718788297,1.8375,2070.7,2069.0,2.90695]
[1617718788601,30.0,2071.0,2069.0,2.90695]
[1617718788799,30.0,2071.0,2069.7,2.90695]
[1617718790501,2.0,2072.1,2069.7,2.90695]
[1617718790704,2.0,2073.5,2070.5,2.90695]
[1617718790913,62.6529,2073.5,2070.5,2.90695]
[1617718791503,62.6529,2073.5,2070.6,13.2306]
[1617718791707,32.0,2073.4,2070.6,13.2306]
[1617718792806,32.0,2073.4,2070.8,2.90695]
[1617718793306,32.0,2073.4,2070.6,13.2306]
[1617718793808,34.8009,2073.4,2070.6,13.2306]
[1617718794106,15.0,2073.0,2070.0,13.6041]
[1617718794308,32.0,2072.9,2070.0,13.6041]
[1617718794506,34.4452,2072.9,2070.0,13.6041]
[1617718794708,32.4452,2072.9,2070.1,2.90695]
[1617718795106,30.0,2072.7,2070.1,5.08725]
[1617718796107,30.0,2072.7,2070.1,2.90695]
[1617718796807,2.90695,2070.2,2070.0,13.6041]
[1617718797008,5.17765,2070.2,2070.0,13.6041]
[1617718799914,30.0,2070.1,2070.0,13.6041]
[1617718800115,5.17765,2070.2,2070.0,13.6041]
[1617718801014,30.0,2070.1,2070.0,13.6041]
[1617718801216,5.17765,2070.2,2070.0,13.6041]
[1617718801913,30.0,2070.1,2070.0,13.6041]
[1617718802114,30.0,2070.1,2068.6,13.2273]
[1617718802915,30.0,2070.1,2068.4,2.90695]
[1617718803115,30.0,2069.9,2068.4,2.90695]
[1617718803516,2.0,2069.8,2068.4,2.90695]
[1617718803714,30.0,2069.7,2067.7,13.4002]
[1617718803918,32.7686,2069.7,2067.7,13.4002]
[1617718804117,34.7686,2069.7,2067.7,13.4002]
[1617718804816,2.90695,2067.8,2067.7,13.4002]
[1617718805016,5.49755,2067.8,2067.7,13.4002]
[1617718806221,5.49755,2067.8,2067.5,2.90695]
[1617718806420,5.49755,2067.8,2065.3,2.0]
[1617718806623,5.49755,2067.8,2066.6,13.4383]
[1617718806824,2.5906,2067.8,2066.9,2.90695]
[1617718807423,0.9601,2069.0,2066.9,2.90695]
[1617718807622,0.9601,2069.0,2066.9,5.55745]
[1617718808022,60.1099,2069.9,2066.9,7.55745]
[1617718808323,2.0,2069.8,2067.0,2.0]
[1617718808622,32.0,2069.8,2067.0,2.0]
[1617718808822,32.0,2069.8,2067.8,2.90695]
[1617718809027,32.0,2069.8,2067.8,5.65745]
[1617718809626,30.0,2069.8,2067.9,2.0]
[1617718810925,30.0,2069.8,2068.1,2.90695]
[1617718811426,32.0,2069.8,2067.4,2.0]
[1617718811626,32.0,2069.8,2067.4,4.3498]
[1617718812527,30.0,2069.8,2067.4,4.3498]
[1617718812929,30.0,2069.8,2068.1,2.90695]
[1617718813230,30.0,2069.8,2067.4,4.3498]
[1617718813529,30.0,2069.7,2068.0,2.4231]
[1617718814831,30.0,2069.7,2068.7,2.90695]
[1617718815033,30.0,2069.7,2068.7,4.83845]
[1617718815331,30.0,2070.2,2068.7,4.83845]
[1617718815948,2.0,2071.1,2068.7,4.83845]
[1617718816140,17.0698,2073.0,2068.7,4.83845]
[1617718816345,30.0,2072.7,2069.1,73.8556]
[1617718816737,2.0,2072.6,2069.1,73.8556]
[1617718816941,30.0,2072.5,2069.7,2.90695]
[1617718817139,2.0,2072.4,2069.7,5.02075]
[1617718817337,30.0,2072.3,2069.7,5.02075]
[1617718817538,2.0,2072.2,2069.7,5.02075]
[1617718817738,30.0,2072.1,2069.7,5.02075]
[1617718817938,2.0,2072.0,2069.7,5.02075]
[1617718818140,30.0,2071.9,2069.7,5.02075]
[1617718819039,30.0,2071.9,2070.2,2.90695]
[1617718819240,30.0,2071.9,2070.2,5.05505]
[1617718820940,2.90695,2070.3,2070.2,5.05505]
[1617718822349,30.0,2072.1,2070.2,7.05505]
[1617718822543,15.0,2073.0,2070.2,37.05505]
[1617718822942,15.0,2073.0,2071.5,2.90695]
[1617718823148,30.0,2072.9,2071.5,2.7746]
[1617718824645,30.0,2072.9,2070.7,68.5109]
[1617718825046,30.0,2072.9,2071.1,2.90695]
[1617718826049,30.0,2072.9,2069.5,2.0]
[1617718826253,2.0,2072.8,2069.3,72.833]
[1617718826450,30.0,2072.7,2068.0,30.0]
[1617718826650,71.4316,2072.4,2068.7,2.0]
[1617718826854,32.0,2072.3,2068.7,2.0]
[1617718827051,32.0,2072.3,2069.4,2.90695]
[1617718827250,32.0,2072.3,2068.1,62.2513]
[1617718828652,32.0,2072.3,2068.1,64.2513]
[1617718829053,32.0,2072.3,2069.2,2.90695]
[1617718829253,32.0,2072.3,2069.2,5.05085]
[1617718830954,32.0,2072.3,2069.6,2.90695]
[1617718831762,32.0,2072.3,2068.1,62.2513]
[1617718832663,32.0,2072.3,2068.2,26.1362]
[1617718832962,32.0,2072.3,2068.3,2.0]
[1617718833364,32.0,2072.3,2068.2,26.1362]
[1617718834063,32.0,2072.3,2068.2,28.1362]
[1617718834664,32.0,2072.3,2068.2,26.1362]
[1617718835065,2.90695,2068.3,2068.2,29.04315]
[1617718836367,30.0,2069.8,2068.2,29.04315]
[1617718836667,30.0,2070.6,2068.4,63.0847]
[1617718836867,30.0,2070.6,2068.4,93.0847]
[1617718837068,2.0,2071.7,2069.9,2.90695]
[1617718837269,1.1,2072.6,2069.9,4.78825]
[1617718837468,58.3118,2073.1,2069.9,4.78825]
[1617718837872,30.0,2072.9,2069.9,4.78825]
[1617718838069,32.0,2072.9,2069.9,4.78825]
[1617718838269,32.0,2072.9,2070.0,12.7045]
[1617718839270,2.90695,2070.1,2070.0,12.7045]
[1617718840972,32.90695,2070.1,2069.8,13.6663]
[1617718843774,32.90695,2070.1,2068.9,61.8678]
[1617718844474,32.90695,2070.1,2068.5,2.0]
[1617718844977,2.90695,2070.1,2068.5,2.0]
[1617718845176,30.0,2070.5,2069.3,2.90695]
[1617718845377,30.0,2070.5,2069.3,2.3905]
[1617718845579,2.0,2072.4,2069.4,2.0]
[1617718846079,30.0,2072.3,2069.4,2.0]
[1617718846279,30.0,2072.3,2069.6,2.0]
[1617718846480,2.0,2072.2,2069.6,2.0]
[1617718846679,30.0,2072.3,2069.6,2.0]
[1617718846881,30.0,2072.3,2069.5,27.1403]
[1617718847080,30.0,2072.3,2069.8,2.90695]
[1617718847283,30.0,2072.3,2069.8,5.21225]
[1617718847682,2.0,2072.2,2069.8,7.21225]
[1617718847883,30.0,2072.1,2069.8,7.21225]
[1617718848184,30.0,2071.9,2069.8,5.21225]
[1617718848388,30.0,2071.9,2069.8,2.3053]
[1617718848687,30.0,2071.9,2069.5,27.1403]
[1617718849185,30.0,2071.7,2069.6,2.0]
[1617718850185,30.0,2071.7,2069.5,27.1403]
[1617718850987,30.0,2071.5,2069.5,27.1403]
[1617718851195,2.90695,2069.6,2069.5,27.1403]
[1617718851999,2.90695,2069.6,2069.5,13.448]
[1617718852187,32.90695,2069.6,2069.5,13.448]
[1617718853388,2.90695,2069.6,2069.5,13.448]
[1617718855488,32.90695,2069.6,2069.5,13.448]
[1617718856289,32.90695,2069.6,2068.3,13.5968]
[1617718856489,32.90695,2069.6,2068.2,75.9677]
[1617718856990,34.90695,2069.6,2066.8,26.1976]
[1617718857192,32.90695,2068.3,2067.2,2.90695]
[1617718857391,34.99835,2068.3,2067.2,2.90695]
[1617718857891,34.99835,2068.3,2067.3,2.0]
[1617718859194,2.90695,2067.4,2067.3,2.0]
[1617718859994,30.0,2068.3,2067.3,2.0]
[1617718860195,30.0,2069.1,2067.3,2.0]
[1617718861198,30.0,2069.1,2067.7,2.90695]
[1617718861800,30.0,2069.1,2067.4,2.0]
[1617718863300,2.90695,2067.5,2067.4,2.0]
[1617718863903,2.90695,2067.5,2067.3,2.90695]
[1617718865504,2.90695,2067.5,2067.1,2.0]
[1617718867204,2.90695,2067.2,2067.1,4.90695]
[1617718872010,5.14655,2067.2,2066.8,26.1976]
[1617718872210,35.14655,2067.2,2066.8,26.1976]
[1617718872711,35.14655,2067.2,2066.8,13.0814]
[1617718873311,2.90695,2066.9,2066.0,80.4926]
[1617718873512,30.0,2066.8,2064.8,13.8807]
[1617718874322,30.0,2066.8,2064.9,2.0]
[1617718874614,30.0,2066.8,2064.8,13.8807]
[1617718875212,30.0,2066.8,2065.1,2.90695]
[1617718875613,30.0,2066.8,2065.1,4.90695]
[1617718876112,2.2396,2067.2,2065.1,4.90695]
[1617718876313,2.2396,2067.2,2065.6,73.4252]
[1617718876514,65.3481,2068.9,2065.6,76.0614]
[1617718876718,65.3481,2068.9,2065.7,2.0]
[1617718877114,65.3481,2068.9,2065.6,76.0614]
[1617718877115,2.0,2068.7,2065.6,76.0614]
[1617718877315,32.0,2068.6,2065.9,2.90695]
[1617718877716,32.0,2068.6,2065.9,4.90695]
[1617718877916,32.0,2068.6,2065.9,2.90695]
[1617718878116,32.0,2068.6,2065.7,27.6377]
[1617718878315,32.0,2068.6,2065.7,13.8599]
[1617718879323,2.90695,2065.8,2065.7,13.8599]
[1617718880418,2.90695,2065.8,2064.4,61.3498]
[1617718880620,2.90695,2065.8,2064.4,59.3498]
[1617718881020,2.90695,2065.8,2064.5,2.0]
[1617718881319,1.9162,2066.0,2064.7,2.90695]
[1617718881522,1.9162,2066.0,2064.5,2.0]
[1617718881926,1.9162,2066.0,2064.4,59.3498]
[1617718882220,1.9162,2066.0,2064.5,2.0]
[1617718883322,1.9162,2066.0,2064.7,2.90695]
[1617718884527,30.0,2066.4,2064.5,2.0]
[1617718884727,2.7904,2066.0,2064.5,2.0]
[1617718884925,30.0,2065.9,2064.5,2.0]
[1617718885124,30.0,2065.9,2064.4,59.3498]
[1617718885425,2.90695,2064.5,2064.4,62.25675]
[1617718886526,2.90695,2064.5,2064.4,2.90695]
[1617718888628,2.90695,2064.5,2063.3,2.0]
[1617718888828,2.90695,2064.5,2063.5,2.0]
[1617718889328,3.0105,2065.2,2064.0,2.90695]
[1617718889827,33.0105,2065.2,2064.0,2.90695]
[1617718890428,33.0105,2065.2,2063.5,2.0]
[1617718890629,33.0105,2065.2,2063.2,90.9325]
[1617718890630,35.0105,2065.2,2063.2,90.9325]
[1617718891431,35.0105,2065.2,2063.4,2.90695]
[1617718893131,35.0105,2065.2,2063.2,90.9325]
[1617718893332,2.90695,2063.3,2063.2,13.5398]
[1617718893633,5.24055,2063.3,2063.2,13.5398]
[1617718894533,5.24055,2063.3,2062.0,2.0]
[1617718895032,35.24055,2063.3,2060.7,81.3521]
[1617718895432,75.3237,2062.7,2061.0,2.90695]
[1617718895633,30.0,2062.6,2061.0,2.90695]
[1617718895833,32.0,2062.6,2061.0,2.90695]
[1617718896334,30.0,2062.6,2061.0,2.90695]
[1617718896835,2.8898,2062.7,2061.0,2.90695]
[1617718897034,55.457,2063.8,2061.0,2.90695]
[1617718897336,55.457,2063.8,2061.9,2.90695]
[1617718897634,55.457,2063.8,2061.9,5.69795]
[1617718897833,30.0,2063.7,2061.9,5.69795]
[1617718899037,55.457,2063.8,2062.0,2.0]
[1617718899237,85.457,2063.8,2062.0,2.0]
[1617718899535,2.7904,2066.0,2062.5,2.90695]
[1617718899737,62.8711,2065.5,2062.5,5.34685]
[1617718900437,62.8711,2065.5,2062.6,12.9344]
[1617718900438,30.0,2065.4,2062.6,12.9344]
[1617718900737,30.0,2065.4,2062.6,14.9344]
[1617718901538,30.0,2065.4,2064.7,2.90695]
[1617718901739,80.4977,2067.2,2064.7,5.08545]
[1617718902758,80.4977,2067.2,2064.7,7.08545]
[1617718902951,30.0,2067.1,2064.7,7.08545]
[1617718903550,30.0,2067.1,2065.9,2.90695]
[1617718903747,80.4977,2067.2,2065.9,4.91615]
[1617718904347,2.0,2069.3,2065.9,4.91615]
[1617718904348,1.1,2069.3,2065.9,4.91615]
[1617718904558,3.1,2069.3,2065.9,4.91615]
[1617718904748,55.822,2068.7,2065.9,4.91615]
[1617718904948,2.0,2068.6,2065.9,4.91615]
[1617718905149,30.0,2068.6,2065.9,4.91615]
[1617718905348,2.90695,2066.0,2065.9,2.0092]
[1617718905549,30.0,2065.9,2065.6,2.90695]
[1617718905750,30.0,2065.9,2064.9,12.6147]
[1617718906248,31.9644,2065.9,2064.9,12.6147]
[1617718907554,2.90695,2065.0,2064.9,12.6147]
[1617718907759,3.86675,2065.0,2064.9,13.5705]
[1617718908154,2.90695,2065.0,2064.9,12.6147]
[1617718909855,30.0,2065.9,2064.9,12.6147]
[1617718910456,30.0,2065.9,2064.0,0.9807]
[1617718910661,2.6779,2065.9,2063.9,68.1608]
[1617718910857,30.0,2065.6,2062.1,12.8524]
[1617718911456,32.0,2065.6,2063.3,2.90695]
[1617718911657,30.0,2065.6,2062.1,12.8524]
[1617718912559,30.0,2065.6,2062.1,13.8195]
[1617718912962,30.0,2065.6,2062.1,12.8524]
[1617718913562,2.90695,2062.2,2062.1,12.8524]
[1617718913762,35.39185,2062.2,2062.1,12.8524]
[1617718914064,35.39185,2062.2,2062.1,13.8274]
[1617718914266,35.39185,2062.2,2062.1,12.8524]
[1617718915064,5.39185,2062.2,2062.1,12.8524]
[1617718915272,35.39185,2062.2,2062.1,12.8524]
[1617718915770,35.39185,2062.2,2060.0,2.2302]
[1617718916883,35.39185,2062.2,2060.0,3.1884]
[1617718917070,35.39185,2062.2,2060.0,2.2302]
[1617718917471,32.4849,2062.2,2060.2,2.90695]
[1617718917681,32.4749,2062.2,2060.2,2.90695]
[1617718919672,32.4749,2062.2,2060.6,2.90695]
[1617718920172,32.4749,2062.2,2060.0,2.2302]
[1617718920375,32.4749,2062.2,2060.1,2.0]
[1617718920776,32.4749,2062.2,2058.0,0.04246764]
[1617718920975,30.0,2060.6,2058.0,0.04246764]
[1617718921175,32.5902,2060.6,2058.0,0.04246764]
[1617718921575,34.5902,2060.6,2058.1,2.90695]
[1617718922076,34.5902,2060.6,2058.0,0.04246764]
[1617718922681,32.5902,2060.6,2058.0,0.04246764]
[1617718923476,32.5902,2060.6,2058.7,2.90695]
[1617718923676,32.5902,2060.6,2058.0,0.04246764]
[1617718924576,3.5637,2060.6,2058.0,0.04246764]
[1617718924783,65.0581,2060.7,2058.0,0.04246764]
[1617718924975,2.4749,2062.2,2058.0,2.58166764]
[1617718925177,74.4973,2062.1,2058.1,2.0]
[1617718925578,74.4973,2062.1,2060.6,2.90695]
[1617718925777,30.0,2065.2,2060.6,2.90695]
[1617718926076,30.0,2062.9,2060.7,13.2937]
[1617718926476,30.0,2062.9,2060.7,15.2937]
[1617718926676,30.0,2062.9,2060.7,13.2937]
[1617718927076,2.0,2062.8,2060.7,13.2937]
[1617718927377,2.0,2062.6,2060.7,13.2937]
[1617718927576,2.90695,2060.8,2060.7,13.2937]
[1617718927877,2.90695,2060.8,2059.1,2.0]
[1617718928076,32.90695,2060.8,2058.2,13.01]
[1617718928278,32.90695,2060.8,2058.3,13.3671]
[1617718928477,57.9087,2060.3,2058.3,13.3671]
[1617718928678,60.8382,2060.3,2058.3,13.3671]
[1617718929078,60.8382,2060.3,2058.3,15.3671]
[1617718929680,60.8382,2060.3,2059.2,2.90695]
[1617718930083,60.8382,2060.3,2058.3,15.3671]
[1617718930283,90.8382,2060.3,2058.3,13.3671]
[1617718930486,90.8382,2060.3,2058.0,0.04246764]
[1617718930787,32.9295,2060.3,2058.0,0.04246764]
[1617718930985,66.3687,2058.4,2058.0,0.04246764]
[1617718931186,68.3601,2058.4,2058.0,0.04246764]
[1617718931685,2.90695,2058.1,2058.0,0.04246764]
[1617718932588,32.90695,2058.1,2058.0,0.04246764]
[1617718932789,32.90695,2058.1,2055.4,26.2979]
[1617718933388,2.90695,2058.1,2055.4,26.2979]
[1617718933688,68.3601,2058.4,2057.1,2.90695]
[1617718934288,68.3601,2058.4,2055.4,26.2979]
[1617718934488,30.0,2058.3,2055.4,26.2979]
[1617718935289,68.3601,2058.4,2056.6,9.566e-05]
[1617718935490,30.0,2058.2,2056.6,9.566e-05]
[1617718935691,2.90695,2056.7,2056.6,9.566e-05]
[1617718935994,35.60325,2056.7,2056.6,9.566e-05]
[1617718936791,5.60325,2056.7,2056.6,9.566e-05]
[1617718937592,77.2295,2056.9,2056.6,2.90704566]
[1617718937906,30.0,2058.2,2056.6,2.90704566]
[1617718937907,2.9295,2060.3,2056.6,2.90704566]
[1617718938092,77.156,2058.5,2056.6,5.38504566]
[1617718938693,77.136,2058.5,2056.6,5.38504566]
[1617718939094,77.136,2058.5,2056.7,13.1149]
[1617718939695,77.136,2058.5,2058.4,2.90695]
[1617718939896,77.136,2058.5,2057.9,2.7277]
[1617718940997,77.136,2058.5,2056.7,13.1149]
[1617718942594,29.98,2058.4,2056.7,13.1149]
[1617718943699,2.90695,2056.8,2056.7,13.1149]
[1617718943898,5.39595,2056.8,2056.6,9.566e-05]
[1617718945700,5.39595,2056.8,2056.7,2.90695]
[1617718945901,29.98,2058.3,2056.7,2.90695]
[1617718946103,99.4657,2058.5,2056.7,2.90695]
[1617718946299,69.4657,2058.5,2056.7,2.90695]
[1617718947600,99.4657,2058.5,2056.7,2.90695]
[1617718949202,69.4657,2058.5,2056.7,2.90695]
[1617718949402,69.4657,2058.5,2056.7,4.89925]
[1617718949814,69.4657,2058.5,2056.7,1.9923]
[1617718951807,2.90695,2058.3,2058.2,2.90695]
[1617718952408,2.90695,2058.3,2056.7,1.9923]
[1617718952610,2.90695,2058.3,2056.6,9.566e-05]
[1617718953109,69.4657,2058.5,2056.6,9.566e-05]
[1617718953310,30.0,2058.2,2056.6,9.566e-05]
[1617718953813,29.98,2058.2,2057.4,2.90695]
[1617718954111,29.98,2058.2,2056.6,9.566e-05]
[1617718954911,29.98,2057.2,2056.6,9.566e-05]
[1617718955410,32.8624,2057.2,2056.6,9.566e-05]
[1617718955814,2.90695,2056.7,2056.6,9.566e-05]
[1617718956010,35.12105,2056.7,2056.6,9.566e-05]
[1617718956211,5.14105,2056.7,2056.6,9.566e-05]
[1617718956812,5.14105,2056.7,2056.0,13.9262]
[1617718957013,5.14105,2056.7,2056.0,13.8629]
[1617718957213,5.14105,2056.7,2056.0,13.7852]
[1617718957816,2.90695,2056.1,2056.0,13.7852]
[1617718958218,5.61565,2056.1,2055.4,2.90695]
[1617718958419,30.0,2056.0,2054.3,13.4233]
[1617718958619,5.61565,2056.1,2054.3,13.4233]
[1617718959527,30.0,2056.0,2054.3,13.4233]
[1617718959921,30.0,2056.0,2054.9,2.90695]
[1617718960322,30.0,2056.0,2054.3,13.4233]
[1617718960620,32.8295,2056.0,2054.0,30.0]
[1617718961820,30.0,2056.0,2054.5,2.90695]
[1617718962021,30.0,2055.9,2054.5,2.90695]
[1617718962720,58.8198,2057.3,2054.5,2.90695]
[1617718963020,30.0,2057.2,2054.5,2.90695]
[1617718963722,30.0,2057.2,2054.6,2.0]
[1617718963921,2.90695,2055.5,2055.4,2.90695]
[1617718964122,30.0,2057.2,2055.4,4.89825]
[1617718964322,58.8198,2057.3,2055.5,2.0]
[1617718964622,88.8198,2057.3,2055.4,6.89825]
[1617718964823,58.8198,2057.3,2055.4,6.89825]
[1617718965929,0.9692,2058.7,2056.5,2.90695]
[1617718966125,69.5246,2058.7,2056.5,2.90695]
[1617718966524,32.0,2058.6,2056.5,2.90695]
[1617718966926,32.0,2058.6,2054.3,1.8824]
[1617718967125,34.879,2058.6,2054.4,13.1498]
[1617718967326,68.4924,2057.3,2054.4,13.1498]
[1617718967525,32.0,2057.2,2054.4,13.1498]
[1617718967925,32.0,2057.2,2055.6,2.90695]
[1617718968327,32.0,2057.2,2054.1,2.3468]
[1617718968527,30.0,2057.2,2054.1,2.3468]
[1617718968726,32.0,2057.2,2054.2,13.4474]
[1617718968927,30.0,2057.2,2054.2,13.4474]
[1617718969228,30.0,2057.2,2054.3,2.0]
[1617718969928,2.90695,2054.8,2054.6,2.90695]
[1617718970126,2.90695,2054.8,2054.7,2.0]
[1617718970527,30.0,2056.1,2054.7,2.0]
[1617718970728,71.4272,2057.3,2054.7,2.0]
[1617718970930,2.0,2057.2,2054.7,2.0]